Cogmind - Beta 10.2 *** ADVENTURER MODE // 2022.02.19 @ 03:44:11 Player: woegarden Result: Destroyed by G-34 Mercenary with Small Laser Performance ------------- Evolutions (1) 500 Regions Visited (2) 400 Robots Destroyed (2) 10 Value Destroyed (65) 65 Prototype IDs (0) 0 Alien Tech Used (0) 0 Bonus (200) 200 TOTAL SCORE: 1175 Bonus ------- Pacifist 200 Cogmind --------- Core Integrity 0/400 Matter 285/300 Energy 99/100 System Corruption 0% Temperature Cool (6) Movement Core (100) Ox1 Location -9/Materials Parts ------- > --- POWER (1) -------- (None) > --- PROPULSION (3) --- (None) > --- UTILITY (2) ------ Small Storage Unit > --- WEAPON (3) ------- (None) > --- INVENTORY (6) ---- Flight Unit Light EM Pulse Cannon Light Assault Rifle Heavy Assault Rifle Peak State ------------ > --- POWER ------------ Ion Engine > --- PROPULSION ------- Aluminum Leg Aluminum Leg > --- UTILITY ---------- Small Storage Unit > --- WEAPON ----------- EM Pulse Gun Assault Rifle Assault Rifle > --- INVENTORY -------- Light Ion Engine Light Treads Light Treads [Rating: 7] Favorites ----------- Power Ion Engine Engine Ion Engine Propulsion Aluminum Leg Treads Light Treads Leg Aluminum Leg Wheel Wheel Utility Small Storage Unit Storage Small Storage Unit Protection Light Armor Plating Weapon Assault Rifle Energy Gun EM Pulse Gun Ballistic Gun Assault Rifle Build | -11 -10 -9 ------- Run | Scr Mat Mat Slots Evolved 2 | . . 2 Power . | . . . Propulsion 1 | . . 1 Utility . | . . . Weapon 1 | . . 1 Parts Attached 15 | 6 . 9 Power 3 | 1 . 2 Engine 3 | 1 . 2 Core . | . . . Reactor . | . . . Propulsion 7 | 2 . 5 Treads 3 | . . 3 Leg 2 | 2 . . Wheel 2 | . . 2 Hover . | . . . Flight . | . . . Utility 2 | 1 . 1 Device . | . . . Storage 1 | 1 . . Processor . | . . . Hackware . | . . . Protection 1 | . . 1 Artifact . | . . . Weapon 3 | 2 . 1 Energy Gun 1 | . . 1 Energy Cannon . | . . . Ballistic Gun 2 | 2 . . Ballistic Cannon . | . . . Launcher . | . . . Special Weapon . | . . . Impact Weapon . | . . . Slashing Weapon . | . . . Piercing Weapon . | . . . Special Melee Weapon . | . . . Unidentified Prototypes . | . . . Parts Lost 12 | . . 12 Power 3 | . . 3 Propulsion 6 | . . 6 Utility 1 | . . 1 Weapon 2 | . . 2 Highest Loss Streak 9 | . . 9 Average Slot Usage (%) 51 | . 85 36 Engine 8 | . 14 6 Treads 3 | . . 5 Leg 12 | . 28 6 Storage 11 | . 14 11 Energy Gun 2 | . . 3 Ballistic Gun 10 | . 28 2 Naked Turns . | . . . Heaviest Build 13 | 13 13 13 Greatest Support 60 | 20 20 60 Greatest Overweight (x) 2 | 2 . 2 Average Overweight (x) . | . . . Largest Inventory Capacity 6 | 6 6 6 Average Capacity 5 | 4 6 6 Most Carried 6 | 4 4 6 Average Carried 3 | 2 4 2 Final Capacity 6 | 6 6 6 Final Carried 4 | 4 4 4 Class Distribution -------------------- 100% | Mutant Dominant Class ---------------- Mutant | -10/Materials Mutant | -9/Materials Resources | -11 -10 -9 ----------- Run | Scr Mat Mat Matter Collected 269 | 202 . 67 Remotely . | . . . Salvage Created 50 | . . 50 Parts 4 | . . 4 Haulers Intercepted . | . . . Recyclers Shooed . | . . . Parts Field Recycled . | . . . Retrieved Matter . | . . . Parts Self-Destructed . | . . . Prevented . | . . . Kills | -11 -10 -9 ------- Run | Scr Mat Mat Combat Hostiles Destroyed 2 | . . 2 Melee 1 | . . 1 AOE 1 | . . 1 Classes Destroyed 2 | . . 2 Swarmer 1 | . . 1 Sentry 1 | . . 1 Best Kill Streak 1 | . . 1 Combat Bots Only 1 | . . 1 Max Kills in Single Turn 1 | . . 1 Gunslinging . | . . . Exploded 1 | . . 1 Melee 1 | . . 1 Uniques/NPCs Destroyed . | . . . Combat | -11 -10 -9 -------- Run | Scr Mat Mat Damage Taken 1559 | . 194 1365 Core 441 | . 35 406 Absorbed by Shields . | . . . Core Remaining (%) 93 | 100 86 . Volleys Fired 5 | . . 5 Largest 2 | . . 2 Hottest 60 | . . 60 Shots Fired 10 | . . 10 Gun 10 | . . 10 Cannon . | . . . Launcher . | . . . Special . | . . . Kinetic 5 | . . 5 Thermal . | . . . Explosive . | . . . Electromagnetic 5 | . . 5 Robot Hit Streak 5 | . . 5 Robot Miss Streak 1 | . . 1 Penetration Max . | . . . Secondary Targets . | . . . Shots Hit Robots 5 | . . 5 Core Hits 2 | . . 2 Critical Hits . | . . . Critical Kills . | . . . Critical Parts Destroyed . | . . . Melee Attacks . | . . . Impact . | . . . Slashing . | . . . Piercing . | . . . Sneak Attacks . | . . . Combat Hostiles . | . . . Follow-up Attacks . | . . . Damage Inflicted 75 | . 14 61 Guns 10 | . . 10 Cannons . | . . . Explosions 44 | . . 44 Melee . | . . . Ramming 21 | . 14 7 Kinetic . | . . . Thermal 44 | . . 44 Explosive . | . . . Electromagnetic 10 | . . 10 Impact . | . . . Slashing . | . . . Piercing . | . . . Highest Corruption . | . . . Average Corruption . | . . . Corruption Purged . | . . . Overload Shots . | . . . Overflow Damage 16 | . . 16 Projectiles . | . . . Explosions 16 | . . 16 Melee . | . . . Knockbacks 1 | . 1 . Impact 1 | . 1 . Kinetic . | . . . Secondary . | . . . Self-Inflicted Damage 44 | . 5 39 Shots 1 | . . 1 Rammed 4 | . 3 1 Targets Rammed 6 | . 4 2 Kicked 1 | . 1 . Crushed 1 | . . 1 Highest Temperature 18 | . . 18 Average Temperature 8 | . . 8 Received Heat Transfer 513 | . 57 456 Siege Activations . | . . . Robots Corrupted . | . . . Combat Hostiles . | . . . Parts Fried . | . . . Impact Corruptions . | . . . Robots Melted . | . . . Combat Hostiles . | . . . Parts Melted . | . . . Heat Transferred 50 | . . 50 Parts Sabotaged . | . . . Parts Stolen . | . . . Parts Stripped . | . . . Power Chain Reactions 1 | . . 1 Missiles Intercepted . | . . . Alert | -11 -10 -9 ------- Run | Scr Mat Mat Peak Influence 59 | . 15 59 Initial 5 | . . 5 Average 15 | . 4 23 Maximum Alert Level . | . . . Low Security (%) 100 | 100 100 100 Level 1 . | . . . Level 2 . | . . . Level 3 . | . . . Level 4 . | . . . Level 5 . | . . . High Security . | . . . Max Security . | . . . Squads Dispatched 1 | . 1 . Investigation 1 | . 1 . Extermination . | . . . Reinforcement . | . . . Assault . | . . . Garrison . | . . . Intercept . | . . . Construction Impeded . | . . . Haulers Reinforced . | . . . Stealth | -11 -10 -9 --------- Run | Scr Mat Mat Distress Signals 1 | . 1 . Communications Jammed . | . . . Distress Signals . | . . . Times Spotted 21 | . 11 10 Peak Tracking Total 11 | . 11 6 Tactical Retreats 1 | . . 1 Traps | -11 -10 -9 ------- Run | Scr Mat Mat Traps Triggered 1 | . 1 . Indirectly . | . . . Trap Hack Attempts . | . . . Triggered . | . . . Disarmed . | . . . Reprogrammed . | . . . Reused . | . . . Traps Extracted . | . . . Installed . | . . . Triggered . | . . . Machines | -11 -10 -9 ---------- Run | Scr Mat Mat Machines Disabled 1 | . . 1 Max in Single Turn 1 | . . 1 Machines Sabotaged . | . . . Garrisons Compromised . | . . . Overloaded Fab Kills . | . . . Fab Network Shutdowns . | . . . Hacking | -11 -10 -9 --------- Run | Scr Mat Mat Machines Accessed . | . . . Terminals . | . . . Fabricators . | . . . Repair Stations . | . . . Recycling Units . | . . . Scanalyzers . | . . . Garrison Access . | . . . Total Hacks . | . . . Successful . | . . . Failed . | . . . Catastrophic . | . . . Database Lockouts . | . . . Manual . | . . . Terminals . | . . . Fabricators . | . . . Repair Stations . | . . . Recycling Units . | . . . Scanalyzers . | . . . Garrison Access . | . . . Terminal Hacks . | . . . Fabricator Hacks . | . . . Repair Station Hacks . | . . . Recycling Unit Hacks . | . . . Scanalyzer . | . . . Garrison Access Hacks . | . . . Unauthorized Hacks . | . . . Terminals . | . . . Fabricators . | . . . Repair Stations . | . . . Recycling Units . | . . . Scanalyzers . | . . . Garrison Access . | . . . Data Cores Recovered . | . . . Used . | . . . Hacking Detections . | . . . Full Trace Events . | . . . Feedback Events . | . . . Feedback Blocked . | . . . Robot Schematics Acquired . | . . . Robots Built . | . . . Matter . | . . . Time . | . . . Total Robot Build Rating . | . . . Part Schematics Acquired . | . . . Parts Built . | . . . Matter . | . . . Time . | . . . Total Part Build Rating . | . . . Parts Repaired . | . . . Time . | . . . Parts Recycled . | . . . Recycled Matter . | . . . Retrieved Matter . | . . . Retrieved Components . | . . . Parts Scanalyzed . | . . . Part Schematics Acquired . | . . . Parts Damaged . | . . . Bothacking | -11 -10 -9 ------------ Run | Scr Mat Mat Used RIF Installer . | . . . Robots Hacked . | . . . Non-combat . | . . . Combat . | . . . Robot Hacks Applied . | . . . Relay Couplers Released . | . . . Robots Rewired . | . . . Allies Hacked . | . . . Hacks Repelled . | . . . Allies | -11 -10 -9 -------- Run | Scr Mat Mat Total Allies . | . . . Largest Group . | . . . Highest-Rated Group . | . . . Highest-Rated Ally . | . . . Total Orders . | . . . Ally Attacks . | . . . Total Damage . | . . . Kills . | . . . Allies Corrupted . | . . . Allies Melted . | . . . Intel | -11 -10 -9 ------- Run | Scr Mat Mat Robot Analysis Total . | . . . Derelict Logs Recovered . | . . . Drone Launches . | . . . Drone Recoveries . | . . . Exploration | -11 -10 -9 ------------- Run | Scr Mat Mat Turns Passed 502 | 63 130 309 Spaces Moved 366 | 43 105 218 Core 134 | 20 . 114 Treads 27 | . . 27 Legs 189 | 23 105 61 Wheels 16 | . . 16 Hover . | . . . Flight . | . . . Fastest Speed 50 | 50 120 80 Average Speed 118 | 113 120 119 Slowest Speed 160 | 150 120 160 Overloaded Moves . | . . . Propulsion Burnouts . | . . . Robots Hopped . | . . . Cave-ins Triggered . | . . . Exploration Rate (%) 17 | 4 29 20 Regions Visited 2 Branch Regions . Pre-discovered Areas . | . . . Known Exits Taken . | . . . Unknown Exits Taken 2 | 1 1 . Scrap Searched . | . . . Spaces Dug . | . . . Terrain Destroyed 3 | . . 3 Melee . | . . . Projectile . | . . . AOE 3 | . . 3 Terrain Rammed . | . . . Walls Destroyed . | . . . Machines Disabled . | . . . Actions | -11 -10 -9 --------- Run | Scr Mat Mat Total 423 | 57 108 258 Wait 13 | . . 13 Move 365 | 42 105 218 Hop . | . . . Pick Up 18 | 9 . 9 Fast Attach 1 | 1 . . Attach 13 | 5 . 8 Detach . | . . . Swap 1 | . . 1 Drop 2 | . . 2 Fire 5 | . . 5 Melee . | . . . Ram 1 | . . 1 Kick 3 | . 3 . Crush 1 | . . 1 Escape Stasis . | . . . Rewire . | . . . Trap . | . . . Miscellaneous . | . . . Route ------- -11/Scrapyard -10/Materials -9/Materials History --------- Turn | Location | Event 48 | -11/Scrapyard | Discovered new exit (range 12) 64 | -11/Scrapyard | Entered Materials 176 | -10/Materials | Discovered new exit (range 16) 194 | -10/Materials | Entered another Materials area 194 | -9/Materials | Evolved 2 slots: Propulsion x1, Weapon x1 323 | -9/Materials | Build established: Mutant 353 | -9/Materials | Core integrity fell below 50% 369 | -9/Materials | Lost 9 parts (2p4n1u2w) 378 | -9/Materials | Core integrity fell below 20% 503 | -9/Materials | Destroyed by G-34 Mercenary with Small Laser Last Messages --------------- 00351_ Scanalyzer disabled. 00351_ S-10 Pest destroyed. 00354_ Acquired Flight Unit. 00356_ Acquired 17 matter. 00358_ Acquired Lgt. Assault Rifle. 00360_ U-05 Engineer lays Concrete. 00364_ Y-45 Defender IFF system glitched. 00364_ U-05 Engineer destroyed. 00365_ R-06 Scavenger collects Lgt. Ion Engine. 00366_ U-05 Engineer lays Concrete. 00367_ Slammed into U-05 Engineer. 00368_ U-05 Engineer lays Concrete. 00368_ R-06 Scavenger collects Welding Torch. 00368_ U-05 Engineer lays Concrete. 00373_ U-05 Engineer destroyed. 00379_ Acquired Lgt. Ion Engine. 00381_ Acquired Wheel. 00397_ Wheel destroyed. 00461_ Lgt. Ion Engine destroyed. 00485_ Acquired Lgt. EM Pulse Cannon. Map ----- +----------------------------------------------------+ | ?????????????????????????????????????????????????? | | ?????????????????????????????????????????????????? | | ?????????????????????????????????????????????????? | | ?????????????????????????????????????????????????? | | ?????????????????????????????????????????????????? | | ?????????????????????????????????????????????????? | | ?????????????????????????????????????????????????? | | ?????????????????????????????????????????????????? | | ?????????????????????????????????????????????????? | | ?????????????????????????????????????????????????? | | ??????????????????????? ??????????????????????? | | ??????????????????????#k r #?????????????????????? | | ??????????????????????# #?????????????????????? | | ??????????????????????# k ##????????????????????? | | ???????????????######## #????????????????????? | | ???????????????#[ g #????????????????????? | | ???????????????# k b +????????????????????? | | ???????????????# #????????????????????? | | ???????????????# #????????????????????? | | ?????????####### #????????????????????? | | ?????# """"""" # !!! ** #????????????????????? | | ####?# """"""" # !! * #????????????????????? | | #?# """"""" # !! #????????????????????? | | #?# """"""" + #????????????????????? | | " !#?# """"""" # #????????????????????? | | " #?# # @ #????????????????????? | | " #?# # ######/####???????????????????? | | ??# # # #???????????????????? | | +###?#####+##### # #???????????????????? | | #????# # #???????????????????? | | ###### # """ #???????????????????? | | # ! """"" #???????????????????? | | #### # """"" #???????????????????? | | #??# # """"" #???????????????????? | | +###### """ # """ #???????????????????? | | # """ ####?????##???????????????????? | | # """ #?????????????????????????????? | | # #?????????????????????????????? | | ]! # #?????????????????????????????? | | =! # """ #?????????????????????????????? | | =! # """ ? #?????????????????????????????? | | # """?????#?????????????????????????????? | | # ?????????????????????????????????????? | | # ?????????????????????????????????????? | | ####### "?????????????????????????????????????? | | ??????? "?????????????????????????????????????? | | ??????? ??????????????????????????????????????? | | ?????????????????????????????????????????????????? | | ?????????????????????????????????????????????????? | | ?????????????????????????????????????????????????? | +----------------------------------------------------+ Best States ------------- Heat Dissipation 28 Energy Generation 10 Energy Capacity 250 Matter Stores 300 Matter Capacity 300 Sight Range 16 Terrain Scan Density 10 Armor Coverage 150 Resistance: KI 20 Resistance: TH 20 Resistance: EX 20 Resistance: EM 20 Resistance: I 20 Resistance: S 20 Resistance: P 20 Evasion (%) 44 Recoil Reduction 3 Offensive Hacking 10 Item Schematics ----------------- None Robot Schematics ------------------ None Fabricated ------------ Nothing Alien Tech Used ----------------- None Achievements -------------- None Challenges ------------ None Game ------ Seed SmallPotentialScanner Manual? 0 Play Time 00:08:07 Cumulative 16.0 hours Start 2022.02.19 @ 03:39:03 End 2022.02.19 @ 03:44:11 Sessions 1 Manual Loads 0 Difficulty Adventurer Special Mode None Game No. 27 Rogue 5 Adventurer 22 Explorer 0 Win Type - Total 0 Types 0/0/0/0/0/0/0/0/0 Lore% 19 Gallery% 18 Achievement% 14 Wizard Run 0 Options --------- ASCII 0 Keyboard 0 Movement Mouse Keybinds 0 Fullscreen 1 Font 16/Proggy Map View 76x50 Tactical HUD 1 Map Filters NONE Filters NONE Steam 1 RUN: c704d7fd-e61f-4b98-bee4-ab5824c3909e